lending/lending_fUSD_20260312
["ID","MTS","AMOUNT","RATE_DAILY","PERIOD"]
[408254407,1773322244288,-548.09996795,0.00017903,2]
[408254408,1773322244297,-540.49254031,0.00017903,2]
[408254409,1773322244306,-500.0,0.00017903,2]
[408254410,1773322244315,-500.0,0.00017903,2]
[408254411,1773322244325,-500.0,0.00017903,2]
[408254412,1773322244335,-500.0,0.00017903,2]
[408254413,1773322244345,-500.0,0.00017903,2]
[408254414,1773322244354,-500.0,0.00017903,2]
[408254415,1773322244363,-500.0,0.00017903,2]
[408254416,1773322244373,-529.61791857,0.00017903,2]
[408254417,1773322244384,-197.199278,0.00017904,2]
[408254418,1773322244393,-197.199278,0.00017904,2]
[408254419,1773322244402,-197.199278,0.00017904,2]
[408254420,1773322244412,-197.199278,0.00017904,2]
[408254421,1773322244421,-151.0,0.00017904,2]
[408254422,1773322244430,-151.0,0.00017904,2]
[408254423,1773322244440,-187.660061,0.00017904,2]
[408254424,1773322244450,-175.348749,0.00017904,2]
[408254425,1773322244460,-175.348749,0.00017904,2]
[408254426,1773322244469,-175.348749,0.00017904,2]
[408254427,1773322244479,-175.348749,0.00017904,2]
[408254428,1773322244490,-300.0,0.00017904,2]
[408254429,1773322244499,-9000.0,0.00017913,2]
[408254430,1773322244508,-151.0,0.00017913,2]
[408254431,1773322244518,-764.01882,0.0001795,2]
[408254432,1773322244528,-764.01882,0.0001795,2]
[408254433,1773322244537,-764.01882,0.0001795,2]
[408254434,1773322244668,-764.01882,0.0001795,2]
[408254435,1773322244679,-280.14023,0.0001795,2]
[408254436,1773322244690,-764.01882,0.0001795,2]
[408254437,1773322244700,-280.14024,0.0001795,2]
[408254438,1773322244710,-280.14023,0.0001795,2]
[408254439,1773322244721,-280.14023,0.0001795,2]
[408254440,1773322244732,-280.14024,0.0001795,2]
[408254441,1773322244741,-280.14023,0.0001795,2]
[408254442,1773322244751,-722.28,0.00017967,2]
[408254443,1773322244760,-9000.0,0.00017968,2]
[408254444,1773322244769,-151.0,0.00017968,2]
[408254445,1773322244778,-151.0,0.00017968,2]
[408254446,1773322244787,-500.0,0.00017994,2]
[408254447,1773322244796,-500.0,0.00017994,2]
[408254448,1773322244805,-500.0,0.00017994,2]
[408254449,1773322244814,-213.0,0.00018,2]
[408254450,1773322244824,-350.0,0.00018004,2]
[408254451,1773322244834,-350.0,0.00018004,2]
[408254452,1773322244843,-350.0,0.00018004,2]
[408254453,1773322244854,-454.95723818,0.00018004,2]
[408254454,1773322244865,-500.0,0.00018004,2]
[408254455,1773322244875,-151.0,0.00018004,2]
[408254456,1773322244884,-151.0,0.00018004,2]
[408254457,1773322244893,-151.0,0.00018004,2]
[408254458,1773322244906,-154.561058,0.00018004,2]
[408254459,1773322244916,-154.561058,0.00018004,2]
[408254460,1773322244925,-154.561058,0.00018004,2]
[408254461,1773322244935,-154.561058,0.00018004,2]
[408254462,1773322244945,-151.0,0.00018005,2]
[408254463,1773322244955,-151.0,0.00018005,2]
[408254464,1773322244965,-9000.0,0.00018023,2]
[408254465,1773322244976,-151.0,0.00018023,2]
[408254466,1773322244987,-22329.56306115,0.00018032,2]
[408254467,1773322244996,-503.02080856,0.00018064,2]
[408254468,1773322245006,-619.71855644,0.00018073,2]
[408254469,1773322245016,-500.0,0.00018077,2]
[408254470,1773322245026,-151.0,0.00018078,2]
[408254471,1773322245037,-1500.0,0.00018096,2]
[408254472,1773322245047,-151.0,0.00018133,2]
[408254473,1773322245056,-213.0,0.00018137,2]
[408254474,1773322245067,-310.64170081,0.00018142,2]
[408254475,1773322245077,-166.66,0.00018155,2]
[408254476,1773322245089,-256.18724957,0.00018169,2]
[408254477,1773322245099,-878.0,0.00018178,2]
[408254478,1773322245109,-500.0,0.00018186,2]
[408254479,1773322245118,-200.0,0.00018186,2]
[408254480,1773322245129,-181.08010149,0.00018186,2]
[408254481,1773322245139,-151.0,0.00018188,2]
[408254482,1773322245148,-866.0,0.00018206,2]
[408254483,1773322245158,-23211.76617618,0.00018208,2]
[408254484,1773322245169,-1000.0,0.00018221,2]
[408254485,1773322245178,-499.46578139,0.00018221,2]
[408254486,1773322245187,-1000.0,0.00018221,2]
[408254487,1773322245195,-722.28,0.00018241,2]
[408254488,1773322245204,-151.0,0.00018243,2]
[408254489,1773322245214,-213.0,0.00018274,2]
[408254490,1773322245223,-11623.7705412,0.00018279,2]
[408254491,1773322245231,-2431.81,0.00018292,2]
[408254492,1773322245240,-22329.56306115,0.00018299,2]
[408254493,1773322245250,-88537.23,0.00018356,2]
[408254494,1773322245260,-250.0,0.00018357,2]
[408254495,1773322245269,-151.0,0.00018365,2]
[408254496,1773322245278,-151.0,0.00018365,2]
[408254497,1773322245287,-197.199278,0.00018365,2]
[408254498,1773322245296,-197.199278,0.00018365,2]
[408254499,1773322245305,-197.199278,0.00018365,2]
[408254500,1773322245314,-197.199278,0.00018365,2]
[408254501,1773322245324,-151.0,0.00018365,2]
[408254502,1773322245333,-257.83,0.00018372,2]
[408254503,1773322245342,-878.0,0.00018452,2]
[408254504,1773322245351,-376.0,0.00018454,2]
[408254505,1773322245360,-376.0,0.00018477,2]
[408254506,1773322245369,-151.0,0.00018493,2]
[408254507,1773322245381,-151.0,0.00018493,2]
[408254508,1773322245390,-151.0,0.00018493,2]
[408254509,1773322245399,-183.836779,0.00018493,2]
[408254510,1773322245408,-722.28,0.00018515,2]
[408254511,1773322245418,-587.0,0.00018548,2]
[408254512,1773322245427,-376.0,0.00018553,2]
[408254513,1773322245436,-376.0,0.00018558,2]
[408254514,1773322245446,-2687.0,0.00018573,2]
[408254515,1773322245455,-2871.0,0.00018573,2]
[408254516,1773322245464,-310.64170081,0.00018582,2]
[408254517,1773322245474,-376.0,0.00018583,2]
[408254518,1773322245483,-1855.65622014,0.00018586,2]
[408254519,1773322245492,-151.0,0.00018598,2]
[408254520,1773322245501,-2000.0,0.00018601,2]
[408254521,1773322245511,-376.0,0.00018607,2]
[408254522,1773322245520,-151.0,0.00018621,2]
[408254523,1773322245530,-175.348749,0.00018621,2]
[408254524,1773322245539,-175.348749,0.00018621,2]
[408254525,1773322245548,-175.348749,0.00018621,2]
[408254526,1773322245557,-175.348749,0.00018621,2]
[408254527,1773322245566,-23211.76617618,0.00018631,2]
[408254528,1773322245575,-2000.0,0.00018644,2]
[408254529,1773322245584,-376.0,0.00018662,2]
[408254530,1773322245593,-376.0,0.00018697,2]
[408254531,1773322245603,-166.66,0.00018717,2]
[408254532,1773322245612,-878.0,0.00018726,2]
[408254533,1773322245621,-376.0,0.00018731,2]
[408254534,1773322245631,-500.0,0.00018734,2]
[408254535,1773322245640,-200.0,0.00018734,2]
[408254536,1773322245649,-187.78006525,0.00018734,2]
[408254537,1773322245658,-297.57786444,0.00018749,2]
[408254538,1773322245667,-1039.63237117,0.00018768,2]
[408254539,1773322245676,-1500.0,0.00018768,2]
[408254540,1773322245686,-722.28,0.00018789,2]
[408254541,1773322245695,-376.0,0.00018841,2]
[408254542,1773322245704,-419.0,0.00018868,2]
[408254543,1773322245714,-2351.0,0.00018879,2]
[408254544,1773322245723,-1600.0,0.00018904,2]
[408254545,1773322245732,-174.41796854,0.00018913,2]
[408254546,1773322245741,-419.0,0.00018945,2]
[408254547,1773322245750,-251.52727664,0.00018983,2]
[408254548,1773322245759,-376.0,0.00018985,2]
[408254549,1773322245768,-153.98,0.00018986,2]
[408254550,1773322245777,-153.98,0.00018986,2]
[408254551,1773322245786,-153.98,0.00018986,2]
[408254552,1773322245795,-350.0,0.00019,2]
[408254553,1773322245804,-179.51,0.00019,2]
[408254554,1773322245813,-376.0,0.00019011,2]
[408254555,1773322245822,-310.64170081,0.00019021,2]
[408254556,1773322245831,-23211.76617618,0.00019054,2]
[408254557,1773322245840,-722.28,0.00019063,2]
[408254558,1773322245849,-500.0,0.00019068,2]
[408254559,1773322245858,-180.06,0.00019075,2]
[408254560,1773322245867,-700.0,0.00019077,2]
[408254561,1773322245876,-419.0,0.00019082,2]
[408254562,1773322245886,-350.0,0.00019166,2]
[408254563,1773322245896,-316.850194,0.00019178,2]
[408254564,1773322245909,-316.850194,0.00019178,2]
[408254565,1773322245919,-316.850194,0.00019178,2]
[408254566,1773322245928,-316.850194,0.00019178,2]
[408254567,1773322245943,-154.242032,0.00019178,2]
[408254568,1773322245956,-151.0,0.00019178,2]
[408254569,1773322245966,-265.244161,0.00019178,2]
[408254570,1773322245976,-265.244161,0.00019178,2]
[408254571,1773322245986,-265.244161,0.00019178,2]
[408254572,1773322246003,-265.244161,0.00019178,2]
[408254573,1773322246014,-265.244161,0.00019178,2]
[408254574,1773322246024,-265.244161,0.00019178,2]
[408254575,1773322246033,-265.244161,0.00019178,2]
[408254576,1773322246043,-265.244161,0.00019178,2]
[408254577,1773322246052,-265.244161,0.00019178,2]
[408254578,1773322246061,-265.244161,0.00019178,2]
[408254579,1773322246070,-265.244161,0.00019178,2]
[408254580,1773322246079,-265.244161,0.00019178,2]
[408254581,1773322246088,-151.0,0.00019178,2]
[408254582,1773322246097,-151.0,0.00019178,2]
[408254583,1773322246106,-151.0,0.00019178,2]
[408254584,1773322246115,-419.0,0.00019178,2]
[408254585,1773322246125,-160.0,0.00019192,2]
[408254586,1773322246134,-2500.0,0.00019192,2]
[408254587,1773322246144,-1600.0,0.00019196,2]
[408254588,1773322246153,-2000.0,0.000192,2]
[408254589,1773322246162,-419.0,0.00019216,2]
[408254590,1773322246171,-419.0,0.00019224,2]
[408254591,1773322246181,-419.0,0.0001927,2]
[408254592,1773322246190,-166.66,0.00019279,2]
[408254593,1773322246199,-500.0,0.00019282,2]
[408254594,1773322246208,-200.0,0.00019282,2]
[408254595,1773322246218,-194.72792766,0.00019282,2]
[408254596,1773322246227,-215.732008,0.00019284,2]
[408254597,1773322246236,-246.543512,0.00019284,2]
[408254598,1773322246245,-257.83,0.0001929,2]
[408254599,1773322246254,-1500.0,0.00019316,2]
[408254600,1773322246264,-197.199278,0.00019337,2]
[408254601,1773322246273,-197.199278,0.00019337,2]
[408254602,1773322246282,-197.199278,0.00019337,2]
[408254603,1773322246292,-197.199278,0.00019337,2]
[408254604,1773322246301,-265.244161,0.00019337,2]
[408254605,1773322246311,-265.244161,0.00019337,2]
[408254606,1773322246320,-265.244161,0.00019337,2]
[408254607,1773322246329,-265.244161,0.00019337,2]
[408254608,1773322246338,-284.144415,0.00019337,2]
[408254609,1773322246348,-419.0,0.0001934,2]
[408254610,1773322246358,-151.0,0.00019388,2]
[408254611,1773322246367,-175.348749,0.00019388,2]
[408254612,1773322246378,-175.348749,0.00019388,2]
[408254613,1773322246387,-175.348749,0.00019388,2]
[408254614,1773322246396,-175.348749,0.00019388,2]
[408254615,1773322246405,-247.48115388,0.00019409,2]
[408254616,1773322246414,-419.0,0.00019438,2]
[408254617,1773322246423,-350.0,0.00019455,2]
[408254618,1773322246432,-310.64170081,0.00019461,2]
[408254619,1773322246441,-419.0,0.00019473,2]
[408254621,1773322246451,-23211.76617618,0.00019477,2]
[408254622,1773322246460,-419.0,0.00019478,2]
[408254623,1773322246469,-1473.0,0.00019492,2]
[408254624,1773322246477,-151.0,0.00019507,2]
[408254625,1773322246487,-150.0,0.00019507,2]
[408254626,1773322246496,-150.0,0.00019507,2]
[408254627,1773322246506,-500.0,0.00019507,2]
[408254628,1773322246515,-150.0,0.00019507,2]
[408254629,1773322246525,-150.0,0.00019507,2]
[408254630,1773322246535,-500.0,0.00019507,2]
[408254631,1773322246544,-500.0,0.00019507,2]
[408254632,1773322246553,-150.0,0.00019507,2]
[408254633,1773322246562,-500.0,0.00019507,2]
[408254634,1773322246572,-150.0,0.00019507,2]
[408254635,1773322246581,-500.0,0.00019507,2]
[408254636,1773322246591,-154.6362155,0.00019507,2]
[408254637,1773322246600,-150.0,0.00019507,2]
[408254638,1773322246609,-500.0,0.00019507,2]
[408254639,1773322246618,-500.0,0.00019507,2]
[408254640,1773322246628,-500.0,0.00019507,2]
[408254641,1773322246637,-500.0,0.00019507,2]
[408254642,1773322246646,-150.0,0.00019507,2]
[408254643,1773322246655,-500.0,0.00019507,2]
[408254644,1773322246665,-500.0,0.00019507,2]
[408254645,1773322246675,-500.0,0.00019507,2]
[408254646,1773322246685,-500.0,0.00019507,2]
[408254647,1773322246694,-500.0,0.00019507,2]
[408254648,1773322246703,-500.0,0.00019507,2]
[408254649,1773322246713,-500.0,0.00019507,2]
[408254650,1773322246722,-500.0,0.00019507,2]
[408254651,1773322246733,-150.81923528,0.00019507,2]
[408254652,1773322246742,-648.0,0.00019507,2]
[408254653,1773322246751,-500.0,0.00019507,2]
[408254654,1773322246760,-500.0,0.00019507,2]
[408254655,1773322246770,-150.0,0.00019521,2]
[408254656,1773322246779,-249.192552,0.00019523,2]
[408254657,1773322246789,-419.0,0.00019535,2]
[408254658,1773322246799,-316.850194,0.00019535,2]
[408254659,1773322246807,-316.850194,0.00019535,2]
[408254660,1773322246817,-316.850194,0.00019535,2]
[408254661,1773322246827,-316.850194,0.00019535,2]
[408254662,1773322246838,-151.0,0.00019535,2]
[408254663,1773322246848,-151.0,0.00019535,2]
[408254664,1773322246858,-216.24219,0.00019559,2]
[408254665,1773322246868,-150.0,0.00019562,2]
[408254666,1773322246877,-150.0,0.00019562,2]
[408254667,1773322246887,-500.0,0.00019562,2]
[408254668,1773322246896,-150.14054899,0.00019562,2]
[408254669,1773322246911,-150.38339506,0.00019562,2]
[408254670,1773322246920,-500.0,0.00019562,2]
[408254671,1773322246929,-500.0,0.00019562,2]
[408254672,1773322246939,-150.0,0.00019562,2]
[408254673,1773322246948,-500.0,0.00019562,2]
[408254674,1773322247082,-150.0,0.00019562,2]
[408254675,1773322247092,-500.0,0.00019562,2]
[408254676,1773322247101,-150.0,0.00019562,2]
[408254677,1773322247111,-500.0,0.00019562,2]
[408254678,1773322247121,-500.0,0.00019562,2]
[408254679,1773322247132,-500.0,0.00019562,2]
[408254680,1773322247142,-500.0,0.00019562,2]
[408254681,1773322247152,-150.0,0.00019562,2]
[408254682,1773322247161,-500.0,0.00019562,2]
[408254683,1773322247170,-500.0,0.00019562,2]
[408254684,1773322247180,-637.81160901,0.00019562,2]
[408254685,1773322247189,-500.0,0.00019562,2]
[408254686,1773322247198,-600.74757442,0.00019562,2]
[408254687,1773322247207,-500.0,0.00019562,2]
[408254688,1773322247217,-500.0,0.00019562,2]
[408254689,1773322247226,-500.0,0.00019562,2]
[408254690,1773322247236,-648.0,0.00019562,2]
[408254691,1773322247245,-500.0,0.00019562,2]
[408254692,1773322247254,-500.0,0.00019562,2]
[408254693,1773322247263,-151.0,0.00019562,2]
[408254694,1773322247273,-419.0,0.00019577,2]
[408254695,1773322247282,-190.0,0.00019599,2]
[408254696,1773322247291,-499.99,0.000196,2]
[408254697,1773322247301,-279.05,0.000196,2]
[408254698,1773322247310,-150.0,0.00019602,7]
[408254699,1773322247319,-150.0,0.00019602,7]
[408254700,1773322247328,-150.0,0.00019602,7]
[408254701,1773322247338,-150.0,0.00019602,7]
[408254702,1773322247347,-280.0,0.00019602,7]
[408254703,1773322247355,-150.0,0.00019617,2]
[408254704,1773322247365,-150.0,0.00019617,2]
[408254705,1773322247378,-500.0,0.00019617,2]
[408254706,1773322247387,-500.0,0.00019617,2]
[408254707,1773322247397,-500.0,0.00019617,2]
[408254708,1773322247407,-500.0,0.00019617,2]
[408254709,1773322247416,-150.0,0.00019617,2]
[408254710,1773322247426,-500.0,0.00019617,2]
[408254711,1773322247435,-200.0,0.00019617,2]
[408254712,1773322247445,-500.0,0.00019617,2]
[408254713,1773322247454,-500.0,0.00019617,2]
[408254714,1773322247463,-500.0,0.00019617,2]
[408254715,1773322247473,-500.0,0.00019617,2]
[408254716,1773322247483,-150.0,0.00019617,2]
[408254717,1773322247492,-500.0,0.00019617,2]
[408254718,1773322247502,-601.04601421,0.00019617,2]
[408254719,1773322247511,-500.0,0.00019617,2]
[408254720,1773322247521,-500.0,0.00019617,2]
[408254721,1773322247531,-500.0,0.00019617,2]
[408254722,1773322247540,-500.0,0.00019617,2]
[408254723,1773322247550,-648.0,0.00019617,2]
[408254724,1773322247559,-500.0,0.00019617,2]
[408254725,1773322247568,-500.0,0.00019617,2]
[408254726,1773322247578,-205.57005763,0.00019671,2]
[408254727,1773322247591,-250.58262965,0.00019671,2]
[408254728,1773322247601,-500.0,0.00019671,2]
[408254729,1773322247610,-398.99053488,0.00019671,2]
[408254730,1773322247620,-500.0,0.00019671,2]
[408254731,1773322247632,-500.0,0.00019671,2]
[408254732,1773322247641,-500.0,0.00019671,2]
[408254733,1773322247651,-500.0,0.00019671,2]
[408254734,1773322247660,-500.0,0.00019671,2]
[408254735,1773322247669,-150.0,0.00019671,2]
[408254736,1773322247679,-500.0,0.00019671,2]
[408254737,1773322247688,-500.0,0.00019671,2]
[408254738,1773322247697,-500.0,0.00019671,2]
[408254739,1773322247708,-648.0,0.00019671,2]
[408254740,1773322247717,-500.0,0.00019671,2]
[408254741,1773322247727,-596.68097798,0.00019671,2]
[408254742,1773322247737,-180.06,0.00019673,2]
[408254743,1773322247746,-500.0,0.00019678,2]
[408254744,1773322247757,-500.0,0.00019678,2]
[408254745,1773322247767,-500.0,0.00019678,2]
[408254746,1773322247780,-500.0,0.00019699,2]
[408254747,1773322247791,-10000.0,0.00019716,2]
[408254748,1773322247802,-500.0,0.00019726,2]
[408254749,1773322247811,-500.0,0.00019726,2]
[408254750,1773322247821,-500.0,0.00019726,2]
[408254751,1773322247831,-500.0,0.00019726,2]
[408254752,1773322247840,-500.0,0.00019726,2]
[408254753,1773322247851,-500.0,0.00019726,2]
[408254754,1773322247861,-150.0,0.00019726,2]
[408254755,1773322247871,-500.0,0.00019726,2]
[408254756,1773322247882,-354.90199074,0.00019726,2]
[408254757,1773322247891,-500.0,0.00019726,2]
[408254758,1773322247902,-648.0,0.00019726,2]
[408254759,1773322247913,-177.62322685,0.00019726,2]
[408254760,1773322247923,-159.0,0.00019752,2]
[408254761,1773322247933,-2014.7618231,0.00019772,6]
[408254762,1773322247946,-150.0,0.0001978,2]
[408254763,1773322247955,-150.0,0.0001978,2]
[408254764,1773322247965,-174.0,0.0001978,2]
[408254765,1773322247976,-500.0,0.00019781,2]
[408254766,1773322247987,-500.0,0.00019781,2]
[408254767,1773322247997,-150.0,0.00019781,2]
[408254768,1773322248007,-500.0,0.00019781,2]
[408254769,1773322248016,-500.0,0.00019781,2]
[408254770,1773322248026,-362.33399582,0.00019781,2]
[408254771,1773322248036,-150.51586392,0.00019781,2]
[408254772,1773322248045,-500.0,0.00019781,2]
[408254773,1773322248055,-500.0,0.00019781,2]
[408254774,1773322248064,-648.0,0.00019781,2]
[408254775,1773322248073,-154.561058,0.00019781,2]
[408254776,1773322248082,-154.561058,0.00019781,2]
[408254777,1773322248091,-154.561058,0.00019781,2]
[408254778,1773322248100,-154.561058,0.00019781,2]
[408254779,1773322248110,-151.0,0.00019797,2]
[408254780,1773322248119,-74339.76,0.000198,3]
[408254781,1773322248128,-300.0,0.000198,7]
[408254782,1773322248138,-300.0,0.000198,7]
[408254783,1773322248147,-300.0,0.000198,7]
[408254784,1773322248156,-300.0,0.000198,7]
[408254785,1773322248165,-300.0,0.000198,7]
[408254786,1773322248174,-168.0,0.000198,7]
[408254787,1773322248184,-197.199278,0.000198,2]
[408254788,1773322248193,-197.199278,0.000198,2]
[408254789,1773322248202,-197.199278,0.000198,2]
[408254790,1773322248212,-197.199278,0.000198,2]
[408254791,1773322248224,-265.244161,0.000198,2]
[408254792,1773322248233,-265.244161,0.000198,2]
[408254793,1773322248243,-265.244161,0.000198,2]
[408254794,1773322248252,-265.244156,0.000198,2]
[408254795,1773322248261,-151.0,0.000198,2]
[408254796,1773322248272,-175.348749,0.000198,2]
[408254797,1773322248282,-175.348749,0.000198,2]
[408254798,1773322248292,-175.348749,0.000198,2]
[408254799,1773322248302,-175.348748,0.000198,2]
[408254800,1773322248312,-150.0,0.000198,30]
[408254801,1773322248321,-151.0,0.000198,2]
[408254802,1773322248331,-2000.0,0.000198,2]
[408254803,1773322248340,-2954.42978653,0.0001981,2]
[408254804,1773322248350,-500.0,0.0001983,2]
[408254805,1773322248359,-200.0,0.0001983,2]
[408254806,1773322248368,-201.93286099,0.0001983,2]
[408254807,1773322248393,-500.0,0.00019836,2]
[408254808,1773322248404,-204.83861542,0.00019836,2]
[408254809,1773322248415,-500.0,0.00019836,2]
[408254810,1773322248425,-500.0,0.00019836,2]
[408254811,1773322248436,-500.0,0.00019836,2]
[408254812,1773322248445,-500.0,0.00019836,2]
[408254813,1773322248456,-648.0,0.00019836,2]
[408254814,1773322248466,-150.0,0.00019839,2]
[408254815,1773322248476,-166.66,0.00019841,2]
[408254816,1773322248487,-250.0,0.0001989,2]
[408254817,1773322248500,-500.0,0.00019891,2]
[408254818,1773322248512,-500.0,0.00019891,2]
[408254819,1773322248523,-500.0,0.00019891,2]
[408254820,1773322248534,-500.0,0.00019891,2]
[408254821,1773322248544,-500.0,0.00019891,2]
[408254822,1773322248555,-648.0,0.00019891,2]
[408254823,1773322248565,-297.57786444,0.000199,2]
[408254824,1773322248575,-202.50075004,0.000199,2]
[408254825,1773322248585,-150.0,0.000199,2]
[408254826,1773322248596,-310.64170081,0.000199,2]
[408254827,1773322248607,-2000.0,0.000199,2]
[408254828,1773322248617,-150.0,0.00019915,2]
[408254829,1773322248627,-150.0,0.00019915,2]
[408254830,1773322248637,-150.0,0.00019915,2]
[408254831,1773322248646,-150.0,0.00019915,2]
[408254832,1773322248655,-298.0,0.00019915,2]
[408254833,1773322248666,-150.0,0.0001992,5]
[408254834,1773322248675,-500.0,0.00019945,2]
[408254835,1773322248685,-500.0,0.00019945,2]
[408254836,1773322248695,-500.0,0.00019945,2]
[408254837,1773322248705,-500.0,0.00019945,2]
[408254838,1773322248714,-500.0,0.00019945,2]
[408254839,1773322248723,-648.0,0.00019945,2]
[408254840,1773322248733,-700.0,0.0001997,2]
[408254841,1773322248742,-700.0,0.0001997,2]
[408254842,1773322248751,-1356.29105231,0.0001997,2]
[408254843,1773322248760,-491.61562808,0.00019973,2]
[408254844,1773322248769,-412.60772495,0.00019973,2]
[408254845,1773322248780,-300.0,0.00019979,2]
[408254846,1773322248789,-114578.35677862,0.0001998,2]
[408254847,1773322248798,-151.0,0.0001998,2]
[408254848,1773322248807,-154.789257,0.0001998,2]
[408254849,1773322248817,-151.0,0.0001998,2]
[408254850,1773322248826,-316.850194,0.0001998,2]
[408254851,1773322248835,-316.850194,0.0001998,2]
[408254852,1773322248844,-316.850194,0.0001998,2]
[408254853,1773322248853,-316.850194,0.0001998,2]
[408254854,1773322248862,-151.0,0.0001998,2]
[408254855,1773322248872,-151.0,0.0001998,2]
[408254856,1773322248881,-154.561058,0.0001998,2]
[408254857,1773322248890,-154.561058,0.0001998,2]
[408254858,1773322248902,-154.561058,0.0001998,2]
[408254859,1773322248912,-154.561058,0.0001998,2]
[408254860,1773322248921,-683.56181776,0.0001999,2]
[408254861,1773322248930,-1098.39399116,0.00019994,5]
[408254862,1773322248940,-151.0,0.00019996,2]
[408254863,1773322248950,-309.0,0.00019997,2]
[408254864,1773322248959,-1098.39399116,0.00019998,5]
[408254865,1773322248970,-1098.39399115,0.00019998,5]
[408254866,1773322248979,-229.15310187,0.00019998,2]
[408254867,1773322248988,-500.0,0.00019998,2]
[408254868,1773322248997,-500.0,0.00019998,2]
[408254869,1773322249007,-151865.03292677,0.00019999,2]
[408254870,1773322249017,-500.0,0.00019999,2]
[408254871,1773322249027,-500.0,0.00019999,2]
[408254872,1773322249037,-500.0,0.00019999,2]
[408254873,1773322249049,-500.0,0.00019999,2]
[408254874,1773322249059,-500.0,0.00019999,2]
[408254875,1773322249069,-255.96292911,0.00019999,2]
[408254876,1773322249079,-151.0,0.00019999,2]
[408254877,1773322249088,-558.0,0.0002,2]
[408254878,1773322249098,-1230023.84929738,0.0002,2]
[408254879,1773322249503,-480.92945769,0.0002,2]
[408254880,1773322249516,-35100.48438044,0.0002,2]
[408254881,1773322249567,-500.0,0.00019178,2]
[408254882,1773322249830,-151.0,0.00017798,2]
[408254883,1773322249841,-14827.83920229,0.000199,2]
[408254884,1773322249853,-2243.37561959,0.000199,2]
[408254885,1773322249864,-2904.57182259,0.000199,2]
[408254886,1773322250253,-6258.59574302,0.00018566,2]
[408254887,1773322250264,-10282.37792815,0.00018566,2]
[408254888,1773322250275,-316.38,0.00018566,2]
[408254889,1773322250286,-5472.20938998,0.00018566,2]
[408254890,1773322250296,-3235.97953171,0.000199,2]
[408254891,1773322250305,-48861.90602563,0.0002,2]
[408254892,1773322250333,-559.01799888,0.0002,2]
[408254894,1773322481927,2139.31,0.00013219,2]
[408254898,1773322953088,200.0,0.000144,2]
[408254899,1773322953415,151.0,0.000144,2]
[408254900,1773322954044,151.0,0.000144,2]
[408254901,1773322954646,151.0,0.000144,2]
[408254902,1773322955309,151.0,0.000144,2]
[408254903,1773322956577,151.0,0.000144,2]
[408254904,1773322957209,151.0,0.000144,2]
[408254905,1773322957725,151.0,0.000144,2]
[408254906,1773322957833,151.0,0.000144,2]
[408254907,1773322958906,151.0,0.000144,2]
[408254908,1773322959823,151.0,0.000144,2]
[408254909,1773322960444,151.0,0.000144,2]
[408254910,1773322961033,151.0,0.000144,2]
[408254911,1773322961313,510.84283105,0.000144,2]